bitfinex/quotes_SOLUSD_20251119
["timestamp","ask_amount","ask_price","bid_price","bid_amount"]
[1763524767102,18.12096,140.14,140.12,203.78795382]
[1763524768799,18.12096,140.14,140.12,203.12795382]
[1763524769000,18.12096,140.14,140.13,0.66]
[1763524769174,18.12096,140.14,140.13,194.04674581]
[1763524771100,108.56,140.21,140.13,199.50075914]
[1763524771404,108.56,140.21,140.1,9.78882769]
[1763524771405,18.12096,140.18,140.14,198.04818414]
[1763524771608,18.12096,140.18,140.15,4.26]
[1763524771778,18.12096,140.18,140.16,187.67417081]
[1763524771986,18.12096,140.18,140.16,188.33417081]
[1763524772680,18.12096,140.18,140.17,0.66]
[1763524772887,18.12096,140.18,140.17,188.33417081]
[1763524775487,18.12096,140.18,140.17,187.67417081]
[1763524776792,18.12096,140.18,140.17,188.33417081]
[1763524779983,18.12096,140.19,140.17,188.33417081]
[1763524780183,2.09144197,140.23,140.18,80.93846091]
[1763524780425,2.09144197,140.23,140.19,0.66]
[1763524780590,6.35144197,140.24,140.2,76.01846091]
[1763524780910,18.12096,140.21,140.2,76.01846091]
[1763524781209,22.38096,140.24,140.2,76.01846091]
[1763524781506,24.47240197,140.24,140.18,6.35144197]
[1763524781809,18.12096,140.22,140.21,0.66]
[1763524782027,18.12096,140.22,140.21,76.67846091]
[1763524782507,20.21240197,140.23,140.21,76.67846091]
[1763524782809,18.12096,140.23,140.22,76.01846091]
[1763524784129,40.76541385,140.23,140.17,0.66]
[1763524784410,11.53913315,140.22,140.18,4.92]
[1763524784711,13.63057512,140.22,140.18,4.92]
[1763524784908,13.63057512,140.22,140.19,0.66]
[1763524785998,11.53913315,140.22,140.19,0.66]
[1763524786297,13.63057512,140.22,140.19,0.66]
[1763524786898,14.80630469,140.22,140.19,0.66]
[1763524787713,7.52717154,140.23,140.19,0.66]
[1763524787899,18.12096,140.2,140.19,0.66]
[1763524788314,42.90674818,140.2,140.19,0.66]
[1763524788726,18.12096,140.2,140.19,0.66]
[1763524789106,34.64484818,140.2,140.19,0.66]
[1763524790709,7.52717154,140.23,140.19,0.66]
[1763524790904,3.26717154,140.23,140.19,0.66]
[1763524791529,8.86069675,140.23,140.19,0.66]
[1763524791728,18.12096,140.2,140.19,0.66]
[1763524792424,5.59352521,140.2,140.19,0.66]
[1763524793007,5.59352521,140.2,140.17,4.26]
[1763524793207,5.59352521,140.2,140.15,0.66]
[1763524793208,18.12096,140.17,140.15,0.66]
[1763524793516,5.77358489,140.16,140.15,0.66]
[1763524799038,18.12096,140.18,140.15,0.66]
[1763524799418,21.38813154,140.18,140.15,0.66]
[1763524799726,5.76635921,140.17,140.15,0.66]
[1763524800243,5.76635921,140.17,140.13,4.26]
[1763524800410,3.26717154,140.15,140.11,0.66]
[1763524800614,18.12096,140.12,140.11,0.66]
[1763524800839,23.85420424,140.12,140.11,0.66]
[1763524801352,5.72944284,140.12,140.11,4.89788488]
[1763524801632,3.26717154,140.16,140.11,0.66]
[1763524801828,21.11081492,140.12,140.09,3.26717154]
[1763524802421,21.11081492,140.12,140.1,0.66]
[1763524802621,4.26,140.18,140.1,3.92717154]
[1763524802810,3.26717154,140.17,140.1,3.92717154]
[1763524803010,12.88805683,140.16,140.11,0.66]
[1763524803237,34.27618837,140.16,140.11,0.66]
[1763524803612,12.78790759,140.15,140.11,0.66]
[1763524803914,16.05507913,140.15,140.11,0.66]
[1763524804219,28.85596442,140.14,140.11,0.66]
[1763524805121,32.12313596,140.14,140.11,0.66]
[1763524805828,32.12313596,140.14,140.06,9.78882769]
[1763524805829,3.26717154,140.13,140.1,0.66]
[1763524806031,23.60029846,140.12,140.1,0.66]
[1763524807423,26.86747,140.12,140.07,4.26]
[1763524807627,3.26717154,140.1,140.07,4.92]
[1763524807827,6.99186613,140.09,140.07,4.26]
[1763524808025,21.38813154,140.14,140.08,0.66]
[1763524808340,3.26717154,140.13,140.08,0.66]
[1763524808741,8.85120989,140.13,140.08,0.66]
[1763524808940,8.85120989,140.12,140.08,0.66]
[1763524810129,8.85120989,140.12,140.06,0.66]
[1763524810130,21.38813154,140.09,140.06,0.66]
[1763524810530,5.41599666,140.08,140.06,0.66]
[1763524811046,18.12096,140.14,140.07,3.26717154]
[1763524811234,21.38813154,140.14,140.08,8.18717154]
[1763524811430,3.26717154,140.14,140.08,8.18717154]
[1763524811636,3.26717154,140.16,140.09,3.92717154]
[1763524811831,21.38813154,140.14,140.09,0.66]
[1763524812046,21.38813154,140.14,140.1,0.66]
[1763524812348,3.26717154,140.15,140.1,0.66]
[1763524812549,3.26717154,140.14,140.1,0.66]
[1763524812749,3.26717154,140.11,140.07,0.67]
[1763524812921,3.26717154,140.1,140.07,0.67]
[1763524813749,3.26717154,140.11,140.07,0.67]
[1763524813932,3.26717154,140.12,140.07,0.67]
[1763524814129,4.26,140.15,140.08,3.26717154]
[1763524814332,18.12096,140.13,140.09,0.67]
[1763524815144,21.38813154,140.13,140.09,0.67]
[1763524815855,3.26717154,140.12,140.09,0.67]
[1763524817031,21.38813154,140.13,140.09,0.67]
[1763524818255,21.38813154,140.13,140.07,3.26717154]
[1763524818833,18.12096,140.11,140.07,3.26717154]
[1763524819450,18.12096,140.11,140.08,3.26717154]
[1763524820362,18.12096,140.11,140.09,0.67]
[1763524822546,18.12096,140.13,140.09,0.67]
[1763524822936,21.38813154,140.13,140.09,0.67]
[1763524823156,18.12096,140.13,140.09,0.67]
[1763524823947,3.26717154,140.1,140.04,0.1]
[1763524824262,18.12096,140.06,140.04,0.1]
[1763524824575,5.65193876,140.05,140.04,0.1]
[1763524825062,4.93,140.09,140.04,0.77]
[1763524825063,4.26,140.09,140.04,0.77]
[1763524825275,18.12096,140.1,140.05,9.12021978]
[1763524825557,18.12096,140.08,140.06,0.67]
[1763524826651,13.38021978,140.14,140.07,9.12021978]
[1763524826838,18.12096,140.11,140.08,9.12021978]
[1763524827276,18.12096,140.11,140.09,0.67]
[1763524827572,13.38021978,140.15,140.09,9.79021978]
[1763524827739,13.38021978,140.15,140.09,0.67]
[1763524827941,18.12096,140.14,140.09,0.67]
[1763524828468,10.45882769,140.16,140.1,9.12021978]
[1763524828469,18.12096,140.13,140.1,9.12021978]
[1763524828666,9.12021978,140.17,140.11,9.79021978]
[1763524829040,18.12096,140.14,140.12,0.67]
[1763524829662,27.24117978,140.16,140.12,0.67]
[1763524830370,27.24117978,140.16,140.1,13.38021978]
[1763524830665,27.24117978,140.16,140.12,0.67]
[1763524832467,18.12096,140.16,140.12,0.67]
[1763524832968,18.12096,140.16,140.12,9.79021978]
[1763524833157,18.12096,140.16,140.13,9.12021978]
[1763524833340,18.12096,140.16,140.14,0.67]
[1763524834376,18.12096,140.16,140.14,9.79021978]
[1763524834749,13.38021978,140.2,140.14,9.79021978]
[1763524834949,4.26,140.2,140.15,9.12021978]
[1763524835258,18.12096,140.18,140.14,9.12021978]
[1763524835459,0.67,140.25,140.17,9.12021978]
[1763524835668,9.12021978,140.23,140.17,9.12021978]
[1763524835846,27.24117978,140.23,140.18,0.67]
[1763524836050,9.12021978,140.24,140.18,9.79021978]
[1763524836350,9.12021978,140.25,140.19,9.12021978]
[1763524836552,9.12021978,140.25,140.19,9.79021978]
[1763524836762,18.12096,140.22,140.2,0.67]
[1763524838255,9.99021978,140.27,140.2,9.79021978]
[1763524838567,9.32021978,140.27,140.21,9.12021978]
[1763524838873,18.12096,140.25,140.22,0.67]
[1763524839074,18.12096,140.25,140.22,9.79021978]
[1763524839288,0.2,140.27,140.23,0.67]
[1763524839617,0.2,140.27,140.26,9.12021978]
[1763524839750,0.2,140.27,140.26,14.05021978]
[1763524840650,0.2,140.27,140.23,9.79021978]
[1763524840865,0.2,140.27,140.23,4.93]
[1763524841560,18.12096,140.26,140.23,4.26]
[1763524841980,27.24117978,140.26,140.23,4.26]
[1763524842185,18.12096,140.26,140.23,4.93]
[1763524842491,18.12096,140.26,140.23,4.97]
[1763524843194,27.24117978,140.26,140.23,4.97]
[1763524843366,18.12096,140.26,140.23,4.97]
[1763524844391,18.12096,140.26,140.23,4.26]
[1763524845102,18.12096,140.26,140.23,4.97]
[1763524846861,0.2,140.27,140.23,4.97]
[1763524847104,0.2,140.27,140.24,2.79920294]
[1763524847595,0.2,140.27,140.25,0.71]
[1763524848772,0.2,140.27,140.25,2.79920294]
[1763524849103,0.2,140.27,140.26,0.71]
[1763524849979,0.2,140.27,140.24,0.71]
[1763524852191,0.2,140.27,140.24,2.79920294]
[1763524852388,0.2,140.27,140.23,6.34920294]
[1763524852592,0.2,140.27,140.22,4.97]
[1763524852593,2.95920294,140.27,140.22,4.97]
[1763524852900,2.08920294,140.25,140.18,0.71]
[1763524853078,2.08920294,140.24,140.19,4.26]
[1763524853273,0.2,140.27,140.21,2.08920294]
[1763524853511,2.95920294,140.27,140.21,2.08920294]
[1763524853704,2.95920294,140.27,140.21,2.79920294]
[1763524853882,2.95920294,140.27,140.22,0.71]
[1763524854390,20.21016294,140.25,140.2,0.71]
[1763524854588,2.08920294,140.24,140.2,0.71]
[1763524854792,2.75920294,140.24,140.2,0.71]
[1763524855203,0.67,140.24,140.2,0.71]
[1763524855698,2.75920294,140.24,140.2,0.71]
[1763524856003,18.12096,140.22,140.2,0.71]
[1763524857305,10.37301087,140.25,140.2,0.71]
[1763524857503,18.12096,140.22,140.2,0.71]
[1763524858309,18.12096,140.26,140.21,5.44301087]
[1763524858607,0.2,140.27,140.24,5.44301087]
[1763524858786,0.87,140.27,140.22,0.71]
[1763524859108,6.31301087,140.27,140.22,0.71]
[1763524859288,0.87,140.27,140.22,6.15301087]
[1763524859488,0.87,140.27,140.22,0.71]
[1763524859681,0.2,140.27,140.23,0.71]
[1763524860504,18.99096,140.27,140.23,0.71]
[1763524860802,18.32096,140.27,140.23,0.71]
[1763524861507,0.67,140.26,140.21,10.41301087]
[1763524861801,5.44301087,140.23,140.17,0.71]
[1763524861994,0.67,140.26,140.17,0.71]
[1763524861995,5.44301087,140.24,140.18,5.44301087]
[1763524862185,6.11301087,140.25,140.18,6.15301087]
[1763524862495,5.44301087,140.25,140.18,6.15301087]
[1763524862704,6.11301087,140.25,140.19,6.15301087]
[1763524863296,6.11301087,140.25,140.19,5.44301087]
[1763524863506,6.11301087,140.25,140.19,6.15301087]
[1763524863706,5.44301087,140.23,140.17,4.97]
[1763524864082,5.44301087,140.23,140.18,0.71]
[1763524864284,18.12096,140.24,140.19,5.44301087]
[1763524864704,18.12096,140.24,140.2,0.71]
[1763524865015,5.44301087,140.25,140.2,0.71]
[1763524865393,6.11301087,140.25,140.2,0.71]
[1763524865917,23.76397087,140.27,140.21,5.44301087]
[1763524866086,0.2,140.27,140.23,5.44301087]
[1763524866283,0.2,140.27,140.25,5.44301087]
[1763524866490,0.2,140.27,140.24,5.44301087]
[1763524866706,0.2,140.27,140.25,0.71]
[1763524867088,0.2,140.27,140.24,5.44301087]
[1763524867089,0.2,140.27,140.23,6.15301087]
[1763524867315,0.2,140.27,140.23,5.44301087]
[1763524867627,0.2,140.27,140.22,0.71]
[1763524867628,0.2,140.27,140.24,6.15301087]
[1763524868127,0.2,140.27,140.25,0.71]
[1763524868307,0.2,140.27,140.23,5.44301087]
[1763524868510,24.43397087,140.27,140.21,4.97]
[1763524868719,5.44301087,140.25,140.19,6.15301087]
[1763524869187,6.11301087,140.25,140.19,6.15301087]
[1763524869817,6.11301087,140.25,140.2,0.71]
[1763524869992,18.12096,140.24,140.2,6.15301087]
[1763524870188,0.2,140.27,140.2,0.71]
[1763524870406,18.79096,140.26,140.19,6.15301087]
[1763524870617,5.44301087,140.25,140.19,0.71]
[1763524870817,18.12096,140.23,140.18,4.26]
[1763524871020,5.44301087,140.22,140.18,4.26]
[1763524871207,5.44301087,140.22,140.18,4.97]
[1763524871595,6.11301087,140.23,140.19,0.71]
[1763524872218,6.11301087,140.23,140.18,4.26]
[1763524872417,6.11301087,140.23,140.18,4.94]
[1763524872919,6.11301087,140.23,140.19,0.68]
[1763524873117,5.44301087,140.26,140.2,5.44301087]
[1763524873295,18.12096,140.25,140.2,5.44301087]
[1763524873623,0.2,140.27,140.22,5.44301087]
[1763524873800,0.87,140.27,140.21,6.12301087]
[1763524874115,18.12096,140.25,140.21,6.12301087]
[1763524874324,0.87,140.27,140.23,5.44301087]
[1763524874325,0.2,140.27,140.23,5.44301087]
[1763524874506,0.2,140.27,140.24,5.44301087]
[1763524874902,0.2,140.27,140.22,4.26]
[1763524874903,24.23397087,140.26,140.22,4.26]
[1763524875102,5.44301087,140.25,140.22,4.26]
[1763524875519,6.11301087,140.25,140.22,4.26]
[1763524875823,5.44301087,140.25,140.22,4.26]
[1763524876198,24.23397087,140.26,140.22,4.26]
[1763524876600,0.67,140.25,140.22,4.26]
[1763524876909,24.23397087,140.26,140.2,0.68]
[1763524877803,24.23397087,140.26,140.2,6.12301087]
[1763524878921,18.12096,140.26,140.21,6.12301087]
[1763524879102,23.56397087,140.26,140.21,0.68]
[1763524879306,0.67,140.25,140.21,0.68]
[1763524880828,23.56397087,140.26,140.21,0.68]
[1763524881131,24.23397087,140.26,140.21,0.68]
[1763524882025,0.67,140.25,140.21,0.68]
[1763524882957,23.56397087,140.26,140.21,0.68]
[1763524883238,18.12096,140.26,140.21,0.68]
[1763524883405,6.11301087,140.25,140.21,0.68]
[1763524883606,6.11301087,140.25,140.21,0.67]
[1763524883831,0.67,140.25,140.21,0.67]
[1763524884134,23.56397087,140.26,140.21,0.67]
[1763524884533,0.67,140.25,140.21,0.67]
[1763524885138,0.67,140.25,140.18,4.26]
[1763524885139,18.12096,140.22,140.18,4.26]
[1763524885296,18.12096,140.22,140.18,4.93]
[1763524885502,18.12096,140.22,140.18,4.26]
[1763524885702,18.12096,140.24,140.19,6.11301087]
[1763524886021,23.56397087,140.24,140.19,0.67]
[1763524886341,24.23397087,140.24,140.19,0.67]
[1763524886717,18.79096,140.24,140.19,6.11301087]
[1763524886910,2.76000678,140.24,140.19,0.67]
[1763524887224,2.76000678,140.24,140.2,0.67]
[1763524889005,2.76000678,140.24,140.18,6.35000678]
[1763524889205,18.12096,140.21,140.18,4.26]
[1763524889503,18.12096,140.21,140.16,2.09000678]
[1763524889504,20.21096678,140.21,140.16,0.67]
[1763524889814,20.88096678,140.21,140.16,0.67]
[1763524890204,18.12096,140.19,140.14,7.02000678]
[1763524890409,18.12096,140.19,140.15,0.67]
[1763524890611,18.12096,140.19,140.15,2.76000678]
[1763524891025,18.12096,140.19,140.16,0.67]
[1763524892934,0.67,140.2,140.16,0.67]
[1763524894132,18.12096,140.19,140.16,6.11580531]
[1763524894521,18.12096,140.19,140.17,0.67]
[1763524895127,18.12096,140.21,140.17,0.67]
[1763524895330,18.12096,140.21,140.19,5.44580531]
[1763524895535,15.234633,140.26,140.2,5.44580531]
[1763524895720,18.12096,140.23,140.2,5.44580531]
[1763524895925,18.12096,140.23,140.2,0.67]
[1763524896126,18.12096,140.23,140.21,0.67]
[1763524896431,0.2,140.27,140.22,5.44580531]
[1763524896736,18.12096,140.26,140.23,5.44580531]
[1763524896941,18.12096,140.25,140.22,5.44580531]
[1763524897239,18.12096,140.24,140.21,0.67]
[1763524897542,18.12096,140.24,140.2,5.44580531]
[1763524897543,18.12096,140.24,140.2,6.11580531]
[1763524898043,18.12096,140.24,140.21,0.67]
[1763524898527,18.12096,140.24,140.19,10.37580531]
[1763524898735,18.12096,140.24,140.2,0.67]
[1763524899615,18.12096,140.24,140.2,6.11580531]
[1763524900140,18.12096,140.24,140.21,0.67]
[1763524900617,18.12096,140.24,140.2,5.44580531]
[1763524900816,18.12096,140.24,140.2,0.67]
[1763524901036,18.12096,140.24,140.21,0.67]
[1763524901631,18.12096,140.22,140.19,10.37580531]
[1763524901944,18.12096,140.22,140.2,0.67]
[1763524903247,18.79096,140.22,140.19,4.26]
[1763524903426,18.12096,140.2,140.19,4.26]
[1763524904342,18.12096,140.18,140.15,5.44580531]
[1763524904747,18.12096,140.18,140.16,0.71]
[1763524905445,18.12096,140.18,140.16,6.15580531]
[1763524905949,18.12096,140.19,140.17,0.71]
[1763524906345,18.12096,140.19,140.14,4.26]
[1763524906346,18.12096,140.19,140.15,6.15580531]
[1763524906650,18.12096,140.18,140.15,6.15580531]
[1763524906820,18.12096,140.18,140.16,0.71]
[1763524907164,24.23676531,140.21,140.16,0.71]
[1763524907351,23.56676531,140.2,140.16,0.71]
[1763524907862,18.12096,140.17,140.16,0.71]
[1763524908430,18.12096,140.15,140.12,5.44580531]
[1763524908637,18.12096,140.15,140.12,4.26]
[1763524908945,18.12096,140.14,140.12,4.97]
[1763524909131,18.12096,140.14,140.13,0.71]
[1763524910253,18.12096,140.14,140.12,4.26]
[1763524910461,18.12096,140.14,140.12,4.97]
[1763524911353,18.12096,140.14,140.12,4.26]
[1763524911561,18.12096,140.14,140.13,0.71]
[1763524912266,18.12096,140.15,140.13,0.71]
[1763524912766,18.12096,140.17,140.14,3.26795572]
[1763524912951,18.12096,140.18,140.14,3.26795572]
[1763524913267,17.31678341,140.22,140.16,3.26795572]
[1763524913466,17.98678341,140.22,140.17,0.71]
[1763524913961,18.12096,140.19,140.17,0.71]
[1763524914452,0.67,140.21,140.17,0.71]
[1763524914662,9.78882769,140.19,140.14,3.26795572]
[1763524914863,9.78882769,140.19,140.09,0.71]
[1763524914864,18.12096,140.12,140.09,0.71]
[1763524915358,9.77883241,140.11,140.07,0.71]
[1763524915560,9.77883241,140.11,140.05,4.26]
[1763524915738,9.10883241,140.09,140.05,4.26]
[1763524915944,23.52348969,140.1,140.06,9.81883241]
[1763524916138,18.12096,140.08,140.07,0.71]
[1763524916647,22.79385316,140.08,140.07,0.71]
[1763524916970,4.67289316,140.08,140.07,0.71]
[1763524917846,10.51137313,140.08,140.07,0.71]
[1763524918141,4.67289316,140.08,140.07,0.71]
[1763524918339,10.51137313,140.08,140.07,0.71]
[1763524918565,4.67289316,140.08,140.07,0.71]
[1763524918764,4.67289316,140.08,140.07,9.81883241]
[1763524919162,18.12096,140.11,140.07,9.81883241]
[1763524919352,4.62858964,140.1,140.08,0.71]
[1763524919701,5.83847997,140.13,140.09,4.26]
[1763524919968,4.63043341,140.12,140.09,4.26]
[1763524920140,5.83847997,140.17,140.1,0.71]
[1763524920339,11.54347855,140.21,140.11,9.78882769]
[1763524920340,6.50847997,140.21,140.11,9.78882769]
[1763524920536,4.63209246,140.2,140.14,9.10883241]
[1763524920767,4.63209246,140.19,140.15,13.36883241]
[1763524920977,4.63161899,140.18,140.17,9.10883241]
[1763524921154,6.03847997,140.27,140.2,18.12096]
[1763524921354,4.6334557,140.26,140.21,4.97]
[1763524921555,18.32096,140.27,140.22,9.10883241]
[1763524921759,18.32096,140.27,140.22,0.71]
[1763524922067,18.32096,140.27,140.23,0.71]
[1763524922250,18.99096,140.27,140.23,0.71]
[1763524922446,18.32096,140.27,140.23,0.71]
[1763524922650,0.2,140.27,140.25,9.10883241]
[1763524922966,0.2,140.27,140.25,13.36883241]
[1763524923177,0.2,140.27,140.26,9.81883241]
[1763524923968,0.2,140.27,140.26,0.71]
[1763524924271,0.2,140.27,140.26,9.81883241]
[1763524925243,0.2,140.27,140.25,13.36883241]
[1763524925447,0.2,140.27,140.26,9.81883241]
[1763524926065,0.2,140.3,140.26,9.81883241]
[1763524926247,0.2,140.3,140.28,9.10883241]
[1763524926450,0.2,140.3,140.29,4.26]
[1763524926648,0.2,140.3,140.29,4.97]
[1763524926848,0.2,140.3,140.29,14.07883241]
[1763524927486,0.2,140.3,140.29,4.97]
[1763524927652,0.2,140.3,140.29,9.81883241]
[1763524927957,5.6707461,140.3,140.29,4.26]
[1763524928377,15.44957851,140.3,140.25,0.71]
[1763524928551,18.12096,140.26,140.25,4.26]
[1763524929689,18.12096,140.29,140.25,14.07883241]
[1763524929976,18.12096,140.29,140.26,0.71]
[1763524930775,18.32096,140.3,140.26,9.81883241]
[1763524931066,18.12096,140.29,140.25,13.36883241]
[1763524931251,18.12096,140.29,140.26,0.71]
[1763524931448,18.12096,140.28,140.25,4.26]
[1763524931652,18.12096,140.28,140.25,4.97]
[1763524932274,0.2,140.3,140.25,4.26]
[1763524932478,0.2,140.3,140.26,9.77883241]
[1763524932479,18.12096,140.29,140.26,9.77883241]
[1763524932984,18.12096,140.29,140.26,0.67]
[1763524933172,18.12096,140.28,140.25,4.26]
[1763524933472,18.12096,140.26,140.25,4.26]
[1763524933779,5.44756038,140.26,140.25,4.26]
[1763524933986,18.12096,140.25,140.22,4.26]
[1763524934282,18.12096,140.21,140.18,4.26]
[1763524934484,5.68633499,140.2,140.06,1.38397972]
[1763524934654,18.12096,140.18,140.14,9.10883241]
[1763524934856,5.66993188,140.17,140.15,4.26]
[1763524936856,18.12096,140.19,140.16,0.67]
[1763524937056,18.79096,140.19,140.15,4.26]
[1763524937874,9.10883241,140.18,140.15,4.26]
[1763524938076,27.89979241,140.19,140.15,4.26]
[1763524938279,9.10883241,140.18,140.15,4.26]
[1763524939373,18.12096,140.19,140.15,4.26]
[1763524939574,18.12096,140.19,140.16,0.67]
[1763524941302,27.22979241,140.19,140.16,0.67]
[1763524942502,9.10883241,140.19,140.15,4.26]
[1763524942678,9.10883241,140.19,140.09,9.78882769]
[1763524942679,9.10883241,140.17,140.14,4.26]
[1763524942883,13.7323236,140.16,140.14,4.26]
[1763524943084,5.72038938,140.16,140.14,4.26]
[1763524943287,14.82922179,140.16,140.14,4.26]
[1763524943890,5.72038938,140.16,140.14,4.26]
[1763524944304,4.62264641,140.15,140.14,4.26]
[1763524945109,9.10883241,140.2,140.14,14.02883241]
[1763524945306,4.62484422,140.19,140.15,0.66]
[1763524945615,18.12096,140.2,140.15,9.76883241]
[1763524946003,18.12096,140.2,140.16,0.66]
[1763524946206,5.83847997,140.24,140.19,9.10883241]
[1763524946404,4.63048096,140.23,140.2,4.92]
[1763524946595,4.63048096,140.22,140.2,4.26]
[1763524946798,27.91979241,140.24,140.2,4.26]
[1763524946996,4.63150699,140.23,140.2,4.92]
[1763524947205,22.75246699,140.22,140.21,0.66]
[1763524947592,18.12096,140.22,140.21,0.66]
[1763524947991,18.12096,140.22,140.2,4.26]
[1763524948193,18.12096,140.23,140.2,4.92]
[1763524950113,18.12096,140.23,140.2,4.26]
[1763524950312,4.64460438,140.22,140.2,4.92]
[1763524950514,18.12096,140.23,140.2,4.92]
[1763524950690,4.64661714,140.22,140.2,4.92]
[1763524951017,18.12096,140.23,140.2,4.92]
[1763524951321,4.64979237,140.22,140.2,4.92]
[1763524951505,18.12096,140.23,140.2,4.92]
[1763524951822,0.69,140.25,140.2,4.92]
[1763524951823,27.22979241,140.26,140.21,0.66]
[1763524951992,4.65009834,140.25,140.21,0.66]
[1763524952189,4.65009834,140.24,140.21,0.66]
[1763524952518,4.65009834,140.23,140.21,0.66]
[1763524952692,18.81096,140.26,140.21,0.66]
[1763524952894,4.65453446,140.25,140.21,0.66]
[1763524953207,13.76336687,140.24,140.2,4.26]
[1763524953427,4.65453446,140.23,140.2,4.92]
[1763524953595,4.65453446,140.22,140.2,4.92]
[1763524953915,9.79883241,140.25,140.2,4.92]
[1763524954098,4.65856076,140.24,140.21,0.66]
[1763524954299,5.83847997,140.27,140.21,9.76883241]
[1763524954502,13.7714179,140.26,140.21,0.66]
[1763524954818,13.7714179,140.26,140.2,13.36883241]
[1763524954819,20.29989787,140.25,140.2,4.26]
[1763524955014,10.42390107,140.24,140.2,14.02883241]
[1763524955315,4.66258549,140.23,140.2,14.02883241]
[1763524955500,5.76131558,140.24,140.2,14.02883241]
[1763524955501,4.66258549,140.22,140.2,14.02883241]
[1763524955706,4.66258549,140.21,140.2,14.02883241]
[1763524957317,4.66258549,140.21,140.2,4.92]
[1763524957723,5.83847997,140.25,140.2,14.02883241]
[1763524957924,4.6734877,140.24,140.21,9.76883241]
[1763524958101,4.6734877,140.23,140.21,9.76883241]
[1763524958300,24.64943997,140.27,140.21,9.10883241]
[1763524958501,4.67991593,140.26,140.22,0.66]
[1763524958705,4.67991593,140.25,140.22,0.66]
[1763524958901,4.67991593,140.24,140.22,0.66]
[1763524959102,0.69,140.26,140.22,0.66]
[1763524959315,18.12096,140.24,140.2,4.26]
[1763524959629,10.82765789,140.23,140.2,4.26]
[1763524959924,4.67915087,140.22,140.2,4.26]
[1763524960114,6.14339221,140.22,140.2,4.26]
[1763524960316,6.14339221,140.22,140.2,4.92]
[1763524961327,6.14339221,140.22,140.21,0.66]
[1763524961526,6.14339221,140.22,140.2,4.92]
[1763524962714,6.14339221,140.22,140.2,4.26]
[1763524964015,0.72,140.21,140.17,21.55379755]
[1763524964223,4.69806544,140.2,140.17,4.26]
[1763524964424,15.13731892,140.2,140.17,4.26]
[1763524964605,15.85731892,140.2,140.17,4.26]
[1763524964806,18.12096,140.18,140.17,4.26]
[1763524965007,24.05565281,140.18,140.17,4.26]
[1763524965230,33.88448522,140.18,140.17,4.26]
[1763524965416,38.58202194,140.18,140.17,4.26]
[1763524965605,38.58202194,140.18,140.13,0.72]
[1763524965805,5.59798529,140.17,140.14,4.26]
[1763524966426,5.59798529,140.17,140.14,4.98]
[1763524967909,6.31798529,140.17,140.14,4.26]
[1763524968410,15.4268177,140.17,140.14,4.26]
[1763524968926,14.7068177,140.17,140.14,4.26]
[1763524969314,18.12096,140.15,140.14,4.26]
[1763524969520,23.66555162,140.15,140.14,4.26]
[1763524973242,14.04882769,140.19,140.14,4.26]
[1763524973243,9.78882769,140.19,140.14,4.26]
[1763524973440,5.44821033,140.18,140.15,0.72]
[1763524973941,5.44821033,140.17,140.14,4.26]
[1763524974127,5.44821033,140.17,140.14,4.98]
[1763524974322,18.12096,140.15,140.14,4.26]
[1763524974520,29.74260705,140.15,140.09,0.72]
[1763524974727,5.44821033,140.13,140.1,4.26]
[1763524974918,6.03627005,140.12,140.1,4.26]
[1763524975119,6.03627005,140.12,140.1,4.98]
[1763524975319,6.03627005,140.12,140.1,4.26]